bitfinex/quotes_BTCUSD_20250526
["timestamp","ask_amount","ask_price","bid_price","bid_amount"]
[1748242533925,1.30326181,109650.0,109640.0,1.68623537]
[1748242534654,1.30326181,109650.0,109640.0,1.54067537]
[1748242534790,1.30326181,109650.0,109640.0,1.68623537]
[1748242535319,1.30326181,109650.0,109640.0,1.3213349]
[1748242535522,1.30326181,109650.0,109640.0,1.68623537]
[1748242536343,1.30326181,109650.0,109640.0,1.60831937]
[1748242536783,1.29726181,109650.0,109640.0,1.60831937]
[1748242537655,1.29726181,109650.0,109640.0,1.46275937]
[1748242538054,1.29726181,109650.0,109640.0,1.60835937]
[1748242538273,1.29726181,109650.0,109640.0,1.46275937]
[1748242538412,1.29726181,109650.0,109640.0,1.60835937]
[1748242540451,1.29726181,109650.0,109640.0,1.97325984]
[1748242540866,1.29726181,109650.0,109640.0,1.60835937]
[1748242541070,0.86844681,109650.0,109640.0,1.60835937]
[1748242541431,0.86844681,109650.0,109640.0,1.57943703]
[1748242543574,0.86844681,109650.0,109640.0,1.59389805]
[1748242544395,0.86244681,109650.0,109640.0,1.59389805]
[1748242544801,0.86244681,109650.0,109640.0,1.95879852]
[1748242548061,0.86244681,109650.0,109640.0,1.9443375]
[1748242551614,0.86244681,109650.0,109640.0,2.1167775]
[1748242552053,0.85644681,109650.0,109640.0,2.1167775]
[1748242553017,0.83454681,109650.0,109640.0,2.1167775]
[1748242553444,0.41585361,109650.0,109640.0,2.48167797]
[1748242553676,0.41585361,109650.0,109640.0,2.3359912]
[1748242555022,0.41585361,109650.0,109640.0,2.0179512]
[1748242555223,0.46015361,109650.0,109640.0,2.3359912]
[1748242555604,0.41585361,109650.0,109640.0,2.3359912]
[1748242555858,0.41585361,109650.0,109640.0,1.63350126]
[1748242555985,0.41585361,109650.0,109640.0,2.3633022]
[1748242558063,0.43825361,109650.0,109640.0,2.3633022]
[1748242558278,0.45905361,109650.0,109640.0,2.3633022]
[1748242559503,0.43665361,109650.0,109640.0,2.3633022]
[1748242559739,0.43065361,109650.0,109640.0,2.3633022]
[1748242560119,0.03456041,109650.0,109640.0,2.3633022]
[1748242560690,0.05636041,109650.0,109640.0,2.3632622]
[1748242561755,0.03456041,109650.0,109640.0,2.3632622]
[1748242563203,0.03456041,109650.0,109640.0,2.15018221]
[1748242563418,0.05636041,109650.0,109640.0,2.15018221]
[1748242565239,0.05636041,109650.0,109640.0,1.83218221]
[1748242565442,0.05636041,109650.0,109640.0,2.15014221]
[1748242565626,0.05636041,109650.0,109640.0,1.93092851]
[1748242566349,0.05636041,109650.0,109640.0,1.20112757]
[1748242566557,0.05636041,109650.0,109640.0,1.93092851]
[1748242567286,0.01376041,109650.0,109640.0,2.03756177]
[1748242567495,0.0602756,109670.0,109650.0,0.0171]
[1748242567496,0.0542756,109670.0,109650.0,0.0171]
[1748242567699,0.01172526,109670.0,109660.0,5.31899742]
[1748242567847,0.01172526,109670.0,109660.0,5.4167185]
[1748242568055,0.00345991,109670.0,109660.0,6.0824235]
[1748242568298,0.01,109680.0,109670.0,0.015]
[1748242568534,1.0203,109700.0,109670.0,6.78019961]
[1748242568727,1.04124962,109700.0,109690.0,0.45444603]
[1748242568936,1.04124962,109700.0,109690.0,5.76251803]
[1748242569349,1.04124962,109700.0,109690.0,5.78981703]
[1748242569560,1.04124962,109700.0,109690.0,5.80421727]
[1748242569773,1.04124962,109700.0,109690.0,5.87421727]
[1748242570391,1.04124962,109700.0,109690.0,6.21421727]
[1748242570588,1.04124962,109700.0,109690.0,5.90425727]
[1748242570799,1.04124962,109700.0,109690.0,4.10849127]
[1748242571007,1.04124962,109700.0,109690.0,4.10109103]
[1748242571691,1.04124962,109700.0,109690.0,3.78313103]
[1748242571914,1.04124962,109700.0,109690.0,4.10109103]
[1748242572552,1.04124962,109700.0,109690.0,4.11494997]
[1748242572935,1.04124962,109700.0,109690.0,3.79698997]
[1748242573289,1.04124962,109700.0,109690.0,4.12933432]
[1748242573473,1.04124962,109700.0,109690.0,3.81137432]
[1748242573922,1.04124962,109700.0,109690.0,4.12929432]
[1748242574380,1.04124962,109700.0,109690.0,4.11490997]
[1748242575211,1.03524962,109700.0,109690.0,3.7500095]
[1748242576009,1.03524962,109700.0,109690.0,3.4320895]
[1748242576193,1.03524962,109700.0,109690.0,3.76439009]
[1748242577093,1.03524962,109700.0,109690.0,3.44647009]
[1748242577327,1.03524962,109700.0,109690.0,3.10014109]
[1748242577515,1.03524962,109700.0,109690.0,3.08571109]
[1748242580994,1.03524962,109700.0,109690.0,3.05841209]
[1748242581402,1.03524962,109700.0,109690.0,3.0908908]
[1748242581699,1.03524962,109700.0,109690.0,3.05841209]
[1748242582182,1.03524962,109700.0,109690.0,2.74053209]
[1748242582594,1.03524962,109700.0,109690.0,3.0403515]
[1748242583025,1.02924962,109700.0,109690.0,3.0403515]
[1748242587650,1.02924962,109700.0,109690.0,3.0403115]
[1748242587851,1.02924962,109700.0,109690.0,2.7261515]
[1748242588032,1.02924962,109700.0,109690.0,3.0403115]
[1748242590063,1.02924962,109700.0,109690.0,3.0462115]
[1748242590457,1.02924962,109700.0,109690.0,3.41085999]
[1748242590658,1.02324962,109700.0,109690.0,3.41085999]
[1748242593495,1.02324962,109700.0,109690.0,3.24941122]
[1748242594881,1.00294962,109700.0,109690.0,3.24941122]
[1748242595086,0.98204962,109700.0,109690.0,3.24941122]
[1748242595486,1.03094962,109700.0,109690.0,3.24941122]
[1748242598810,1.02494962,109700.0,109690.0,2.93525122]
[1748242599012,1.02494962,109700.0,109690.0,3.24941122]
[1748242601974,1.00124962,109700.0,109690.0,3.64653842]
[1748242602179,1.02544962,109700.0,109690.0,3.30918893]
[1748242603690,1.02544962,109700.0,109690.0,2.99502893]
[1748242603883,1.02544962,109700.0,109690.0,3.64135871]
[1748242604120,0.87530954,109700.0,109690.0,3.66793742]
[1748242604323,0.86075817,109700.0,109690.0,3.72319619]
[1748242604526,0.80802287,109700.0,109690.0,3.75209577]
[1748242604967,0.75528757,109700.0,109690.0,3.43793577]
[1748242605172,0.75528757,109700.0,109690.0,3.75209577]
[1748242605355,0.59730797,109700.0,109690.0,3.68900676]
[1748242605559,0.55185012,109700.0,109690.0,3.68900676]
[1748242605761,0.54457687,109700.0,109690.0,3.68900676]
[1748242606075,0.49911902,109700.0,109690.0,3.68900676]
[1748242606291,0.45366117,109700.0,109690.0,3.68900676]
[1748242606486,0.40220332,109700.0,109690.0,3.68900676]
[1748242606691,0.45130332,109700.0,109690.0,3.66431829]
[1748242606855,0.40584547,109700.0,109690.0,3.66431829]
[1748242607041,0.36038762,109700.0,109690.0,3.66431829]
[1748242609027,0.31128762,109700.0,109690.0,3.66431829]
[1748242609258,0.31128762,109700.0,109690.0,2.93502131]
[1748242609464,0.31128762,109700.0,109690.0,3.66431829]
[1748242609630,0.36008762,109700.0,109690.0,3.66431829]
[1748242609846,0.36008762,109700.0,109690.0,2.93502131]
[1748242610071,0.36008762,109700.0,109690.0,3.66431829]
[1748242610782,0.36008762,109700.0,109690.0,3.35019829]
[1748242611144,0.31128762,109700.0,109690.0,3.66183829]
[1748242612303,0.35788762,109700.0,109690.0,3.66183829]
[1748242613370,0.35788762,109700.0,109690.0,3.35019829]
[1748242613587,0.35788762,109700.0,109690.0,3.66183829]
[1748242614243,0.35188762,109700.0,109690.0,3.66183829]
[1748242615301,0.35188762,109700.0,109690.0,3.35019829]
[1748242615732,0.35188762,109700.0,109690.0,3.66183829]
[1748242616341,0.35188762,109700.0,109690.0,3.66773829]
[1748242617002,0.35188762,109700.0,109690.0,3.63883871]
[1748242618469,0.29733428,109700.0,109690.0,3.63883871]
[1748242621845,0.29133428,109700.0,109690.0,3.63883871]
[1748242622392,0.29133428,109700.0,109690.0,3.32619871]
[1748242622633,0.29133428,109700.0,109690.0,3.54541241]
[1748242622847,0.29133428,109700.0,109690.0,3.85705241]
[1748242624839,0.29133428,109700.0,109690.0,3.54541241]
[1748242625043,0.29133428,109700.0,109690.0,2.84076392]
[1748242625260,0.29133428,109700.0,109690.0,3.12510492]
[1748242625464,0.29133428,109700.0,109690.0,2.81346492]
[1748242625664,0.29133428,109700.0,109690.0,3.12510492]
[1748242626884,0.29133428,109700.0,109690.0,2.84233546]
[1748242627346,0.29133428,109700.0,109690.0,2.93476176]
[1748242627687,0.29133428,109700.0,109690.0,3.27476176]
[1748242628250,0.29133428,109700.0,109690.0,2.95722176]
[1748242628586,0.29133428,109700.0,109690.0,3.26886176]
[1748242628788,0.29133428,109700.0,109690.0,3.0528144]
[1748242629064,0.29133428,109700.0,109690.0,2.7411744]
[1748242629242,0.29133428,109700.0,109690.0,3.0528144]
[1748242629591,0.28533428,109700.0,109690.0,3.02394386]
[1748242630012,0.28533428,109700.0,109690.0,2.71230386]
[1748242630221,0.28533428,109700.0,109690.0,1.27558186]
[1748242630418,0.28533428,109700.0,109690.0,0.7233113]
[1748242630619,0.28533428,109700.0,109690.0,0.8687913]
[1748242630841,0.28533428,109700.0,109690.0,1.2088313]
[1748242631044,0.28533428,109700.0,109690.0,1.1388313]
[1748242631255,0.28533428,109700.0,109690.0,0.7988313]
[1748242631458,0.28533428,109700.0,109690.0,0.66774987]
[1748242631868,0.28533428,109700.0,109690.0,0.81326987]
[1748242632069,0.28533428,109700.0,109690.0,1.00074987]
[1748242632262,0.28533428,109700.0,109690.0,1.14626987]
[1748242632478,0.28533428,109700.0,109690.0,1.14426987]
[1748242632718,0.28533428,109700.0,109690.0,1.15126987]
[1748242633566,0.28533428,109700.0,109690.0,1.00213548]
[1748242633806,0.28533428,109700.0,109690.0,1.14765548]
[1748242634042,0.28533428,109700.0,109690.0,1.00213548]
[1748242634218,0.28533428,109700.0,109690.0,1.14765548]
[1748242635803,0.28533428,109700.0,109690.0,1.13465548]
[1748242636204,0.28533428,109700.0,109690.0,1.13965548]
[1748242636407,0.28533428,109700.0,109690.0,1.14365548]
[1748242636603,0.28533428,109700.0,109690.0,3.01782348]
[1748242636806,0.28533428,109700.0,109690.0,1.37822148]
[1748242637330,0.28533428,109700.0,109690.0,0.77900699]
[1748242637553,0.27933428,109700.0,109690.0,1.29703548]
[1748242638150,0.27933428,109700.0,109690.0,1.35703548]
[1748242639320,0.27933428,109700.0,109690.0,1.34314948]
[1748242639736,0.27933428,109700.0,109690.0,0.97850099]
[1748242639936,0.27933428,109700.0,109690.0,1.34314948]
[1748242640141,0.27933428,109700.0,109690.0,1.35758805]
[1748242640535,0.27933428,109700.0,109690.0,0.99293956]
[1748242640738,0.27933428,109700.0,109690.0,1.35758805]
[1748242643471,0.27933428,109700.0,109690.0,1.34676387]
[1748242645138,0.27333428,109700.0,109690.0,1.34676387]
[1748242645955,0.27333428,109700.0,109690.0,1.51072387]
[1748242648088,0.27333428,109700.0,109690.0,1.20124387]
[1748242648293,0.27333428,109700.0,109690.0,1.51072387]
[1748242649433,0.27333428,109700.0,109690.0,1.20124387]
[1748242649644,0.27333428,109700.0,109690.0,0.83659538]
[1748242649864,0.27333428,109700.0,109690.0,1.54320258]
[1748242650501,0.27333428,109700.0,109690.0,1.51072387]
[1748242650949,0.27333428,109700.0,109690.0,1.99739663]
[1748242651389,0.27333428,109700.0,109690.0,1.95047935]
[1748242652599,0.22673428,109700.0,109690.0,2.00300185]
[1748242652792,0.22673428,109700.0,109690.0,2.03459961]
[1748242652793,0.22073428,109700.0,109690.0,2.03459961]
[1748242653005,0.22073428,109700.0,109690.0,2.04059961]
[1748242653220,0.0508,109710.0,109690.0,1.72789961]
[1748242653434,0.0508,109710.0,109700.0,4.25613611]
[1748242653646,0.0508,109710.0,109700.0,4.14503254]
[1748242653875,0.0508,109710.0,109700.0,5.19431125]
[1748242654572,0.0516,109720.0,109700.0,5.19431125]
[1748242654786,0.0516,109720.0,109710.0,3.17000198]
[1748242654984,0.0516,109720.0,109710.0,3.25954754]
[1748242655240,0.0516,109720.0,109710.0,4.05876554]
[1748242655664,0.0516,109720.0,109710.0,4.09124425]
[1748242656086,0.0516,109720.0,109710.0,4.09524425]
[1748242656570,0.0516,109720.0,109710.0,4.43524425]
[1748242656712,0.0516,109720.0,109710.0,4.40992225]
[1748242657124,0.0516,109720.0,109710.0,4.37744354]
[1748242657935,0.0516,109720.0,109710.0,3.40732254]
[1748242658158,0.0516,109720.0,109710.0,3.73121284]
[1748242660861,0.0456,109720.0,109710.0,3.73121284]
[1748242664117,0.0456,109720.0,109710.0,3.71680254]
[1748242668310,0.0456,109720.0,109710.0,3.74928125]
[1748242669340,0.0456,109720.0,109710.0,3.71680254]
[1748242670518,0.0245,109720.0,109710.0,3.71680254]
[1748242671193,0.0514,109720.0,109710.0,3.71680254]
[1748242674244,0.0514,109720.0,109710.0,3.40732254]
[1748242674420,0.0514,109720.0,109710.0,3.71432254]
[1748242677309,0.0514,109720.0,109710.0,3.71428254]
[1748242678315,0.0514,109720.0,109710.0,3.74315308]
[1748242679406,0.02493077,109730.0,109710.0,3.40315308]
[1748242679609,0.07843077,109730.0,109720.0,2.29771605]
[1748242679835,0.07843077,109730.0,109720.0,3.25229705]
[1748242681041,0.07843077,109730.0,109720.0,3.25529705]
[1748242681680,0.07843077,109730.0,109720.0,3.59529705]
[1748242682282,0.07843077,109730.0,109720.0,3.59929705]
[1748242682662,0.07843077,109730.0,109720.0,3.96394554]
[1748242682887,0.02493077,109730.0,109720.0,3.96394554]
[1748242683116,0.07793077,109730.0,109720.0,3.96394554]
[1748242683312,0.07793077,109730.0,109720.0,3.47583905]
[1748242683523,0.07793077,109730.0,109720.0,2.45078703]
[1748242683952,0.07793077,109730.0,109720.0,2.44378703]
[1748242684292,0.07793077,109730.0,109720.0,2.45678703]
[1748242684913,0.07793077,109730.0,109720.0,2.14982703]
[1748242685058,0.07793077,109730.0,109720.0,2.063268]
[1748242685263,0.07793077,109730.0,109720.0,2.003552]
[1748242685481,0.07270077,109730.0,109720.0,2.31985849]
[1748242685825,0.07270077,109730.0,109720.0,2.01289849]
[1748242686033,0.07270077,109730.0,109720.0,1.98401649]
[1748242686250,0.07270077,109730.0,109720.0,1.83853649]
[1748242686459,0.07270077,109730.0,109720.0,1.98401649]
[1748242686854,0.07270077,109730.0,109720.0,1.83853649]
[1748242687096,0.07270077,109730.0,109720.0,1.98401649]
[1748242687297,0.07270077,109730.0,109720.0,1.83853649]
[1748242687528,0.07270077,109730.0,109720.0,1.87982849]
[1748242687901,0.07270077,109730.0,109720.0,2.17151849]
[1748242688368,0.07270077,109730.0,109720.0,2.02603849]
[1748242688568,0.07270077,109730.0,109720.0,1.73434849]
[1748242688777,0.07270077,109730.0,109720.0,1.87982849]
[1748242689276,0.07270077,109730.0,109720.0,2.01601682]
[1748242689477,0.06670077,109730.0,109720.0,2.01601682]
[1748242692102,0.06670077,109730.0,109720.0,2.38052957]
[1748242692491,0.06670077,109730.0,109720.0,1.65136833]
[1748242692687,0.06670077,109730.0,109720.0,2.38052957]
[1748242692893,0.06670077,109730.0,109720.0,1.89419995]
[1748242693093,0.06670077,109730.0,109720.0,1.74871995]
[1748242693689,0.52082695,109730.0,109720.0,1.04413933]
[1748242693911,0.5353678,109730.0,109720.0,1.04413933]
[1748242694496,0.17929913,109730.0,109720.0,1.03713933]
[1748242694705,0.54387975,109730.0,109720.0,1.03713933]
[1748242694904,0.54387975,109730.0,109720.0,1.0267]
[1748242695471,0.07521272,109730.0,109720.0,2.33766962]
[1748242695690,0.07521272,109730.0,109720.0,3.10125647]
[1748242695888,0.06670077,109730.0,109720.0,2.72749047]
[1748242696118,0.06670077,109730.0,109720.0,2.69500879]
[1748242696327,0.06670077,109730.0,109720.0,2.68800879]
[1748242696748,0.06670077,109730.0,109720.0,2.69000879]
[1748242696953,0.06670077,109730.0,109720.0,2.72049047]
[1748242697170,0.06070077,109730.0,109720.0,2.72549047]
[1748242697399,0.06070077,109730.0,109720.0,2.58021447]
[1748242697611,0.06070077,109730.0,109720.0,2.72069447]
[1748242697813,0.00770077,109730.0,109720.0,2.72069447]
[1748242698015,0.00770077,109730.0,109720.0,2.72569447]
[1748242698224,0.03390077,109730.0,109720.0,2.71125514]
[1748242698463,0.05950077,109730.0,109720.0,2.52150614]
[1748242698852,0.05950077,109730.0,109720.0,2.49302446]
[1748242700070,0.05950077,109730.0,109720.0,2.55302446]
[1748242701596,0.03390077,109730.0,109720.0,2.55302446]
[1748242702190,0.00770077,109730.0,109720.0,2.55302446]
[1748242703008,0.00770077,109730.0,109720.0,2.32136304]
[1748242705156,0.00170077,109730.0,109720.0,2.32136304]
[1748242705535,0.00179124,109730.0,109720.0,2.32136304]
[1748242707097,0.00179124,109730.0,109720.0,2.32129758]
[1748242707324,0.05589124,109730.0,109720.0,2.32129758]
[1748242707503,0.05589124,109730.0,109720.0,2.48421758]
[1748242707895,0.05589124,109730.0,109720.0,2.51141758]
[1748242708092,0.05589124,109730.0,109720.0,2.14693712]
[1748242708294,0.05589124,109730.0,109720.0,1.95850412]
[1748242708534,0.05589124,109730.0,109720.0,2.46846458]
[1748242708715,0.05589124,109730.0,109720.0,2.48287057]
[1748242712681,0.04989124,109730.0,109720.0,2.48287057]
[1748242713361,0.04989124,109730.0,109720.0,2.46846458]
[1748242713574,0.04989124,109730.0,109720.0,1.46054312]
[1748242714755,0.04989124,109730.0,109720.0,1.82502358]
[1748242715468,0.04989124,109730.0,109720.0,1.67954358]
[1748242715590,0.04989124,109730.0,109720.0,1.82502358]
[1748242715811,0.04989124,109730.0,109720.0,1.83943566]
[1748242719196,0.04989124,109730.0,109720.0,1.2083852]
[1748242719399,0.04989124,109730.0,109720.0,1.3538652]
[1748242720129,0.04989124,109730.0,109720.0,0.8683852]
[1748242720328,0.4143717,109730.0,109720.0,0.8683852]
[1748242720703,0.4143717,109730.0,109720.0,0.86478684]
[1748242720905,0.04389124,109730.0,109720.0,0.86478684]
[1748242721115,0.14797765,109730.0,109720.0,0.86478684]
[1748242721507,0.1334368,109730.0,109720.0,0.85397312]
[1748242722573,0.1334368,109730.0,109720.0,0.84897312]
[1748242722825,0.1334368,109730.0,109720.0,0.84497312]
[1748242723071,0.1334368,109730.0,109720.0,1.18897312]
[1748242723566,0.51245811,109730.0,109720.0,1.18897312]
[1748242723788,0.14797765,109730.0,109720.0,1.18897312]
[1748242726013,0.08131098,109730.0,109720.0,1.18897312]
[1748242726247,0.08131098,109730.0,109720.0,0.84897312]
[1748242729075,0.13341098,109730.0,109720.0,0.84897312]
[1748242734666,0.11887013,109730.0,109720.0,1.21345358]
[1748242734912,0.0521,109730.0,109720.0,1.21345358]
[1748242735377,0.0521,109730.0,109720.0,1.55345358]
[1748242740957,0.0521,109730.0,109720.0,1.18897312]
[1748242741151,0.0521,109730.0,109720.0,1.55345358]
[1748242749082,0.0521,109730.0,109720.0,1.18897312]
[1748242749290,0.0521,109730.0,109720.0,1.55345358]
[1748242749490,0.0521,109730.0,109720.0,1.18897312]
[1748242749722,0.0521,109730.0,109720.0,1.55345358]
[1748242750691,0.0521,109730.0,109720.0,1.18897312]
[1748242750894,0.0521,109730.0,109720.0,1.55345358]
[1748242751144,0.0521,109730.0,109720.0,1.18897312]
[1748242751360,0.0521,109730.0,109720.0,1.55345358]
[1748242751576,0.0521,109730.0,109720.0,1.18897312]
[1748242751811,0.0521,109730.0,109720.0,1.55345358]
[1748242752872,0.15618641,109730.0,109720.0,1.21345358]
[1748242753424,0.16469998,109730.0,109720.0,0.84897312]
[1748242753861,0.18116998,109730.0,109720.0,0.84897312]
[1748242754093,0.16469998,109730.0,109720.0,0.84897312]
[1748242756527,0.15869998,109730.0,109720.0,0.84897312]
[1748242758300,0.15869998,109730.0,109720.0,1.21345358]
[1748242758508,0.14415913,109730.0,109720.0,1.23987683]
[1748242758715,0.14415913,109730.0,109720.0,1.21345358]
[1748242761087,0.14415913,109730.0,109720.0,0.84897312]
[1748242761235,0.14415913,109730.0,109720.0,1.21345358]
[1748242762225,0.14415913,109730.0,109720.0,0.84897312]
[1748242762426,0.14415913,109730.0,109720.0,1.21345358]
[1748242764357,0.13815913,109730.0,109720.0,1.21345358]
[1748242764561,0.13815913,109730.0,109720.0,0.84897312]
[1748242764776,0.13815913,109730.0,109720.0,1.21345358]
[1748242767747,0.13815913,109730.0,109720.0,0.84897312]
[1748242767969,0.13815913,109730.0,109720.0,1.21345358]
[1748242769614,0.13815913,109730.0,109720.0,0.84897312]
[1748242769823,0.13815913,109730.0,109720.0,1.21345358]
[1748242770902,0.15269998,109730.0,109720.0,0.84897312]
[1748242771104,0.51718044,109730.0,109720.0,0.84897312]
[1748242771524,0.15269998,109730.0,109720.0,0.84897312]
[1748242771948,1.13489894,109730.0,109720.0,0.79327312]
[1748242772180,1.58561894,109730.0,109720.0,0.79327312]
[1748242772392,1.24845248,109730.0,109720.0,0.79227312]
[1748242772600,0.52101398,109730.0,109720.0,0.79327312]
[1748242772812,1.20173444,109730.0,109720.0,0.73327312]
[1748242773231,1.20173444,109730.0,109720.0,0.73127312]
[1748242774691,1.19173444,109730.0,109720.0,0.73127312]
[1748242775746,1.20545469,109730.0,109720.0,0.73127312]
[1748242775937,0.93049574,109730.0,109720.0,0.73127312]
[1748242776140,1.2949762,109730.0,109720.0,0.73127312]
[1748242777140,1.2949762,109730.0,109720.0,0.50033692]
[1748242777551,1.3906762,109730.0,109720.0,0.50033692]
[1748242778537,1.45351196,109730.0,109720.0,0.50033692]
[1748242780131,0.91384999,109730.0,109720.0,0.47901137]
[1748242780343,1.27233045,109730.0,109720.0,0.47901137]
[1748242781424,1.13282802,109730.0,109720.0,0.47901137]
[1748242781626,1.14282802,109730.0,109720.0,0.47901137]
[1748242782276,1.14282802,109730.0,109720.0,0.87109183]
[1748242782277,0.06649246,109730.0,109720.0,0.87109183]
[1748242782487,0.05797889,109730.0,109720.0,0.89669183]
[1748242782714,0.05797889,109730.0,109720.0,0.95669183]
[1748242783989,0.05797889,109730.0,109720.0,0.95969183]
[1748242784162,0.001,109730.0,109720.0,0.59521137]
[1748242784393,0.001,109730.0,109720.0,0.95969183]
[1748242784815,0.001,109730.0,109720.0,0.96269183]
[1748242785805,0.001,109730.0,109720.0,1.30269183]
[1748242787911,0.00954085,109750.0,109730.0,0.0257]
[1748242788046,0.08954556,109740.0,109730.0,0.0257]
[1748242788254,0.08954556,109740.0,109730.0,1.94448046]
[1748242788914,0.08954556,109740.0,109730.0,2.30896092]
[1748242789119,0.08954556,109740.0,109730.0,2.33716092]
[1748242789549,4.961e-05,109750.0,109740.0,0.0521]
[1748242789752,0.08959517,109750.0,109740.0,0.0521]
[1748242789959,0.08959517,109750.0,109740.0,2.33536092]
[1748242790805,0.08959517,109750.0,109740.0,1.6064]
[1748242791009,0.08959517,109750.0,109740.0,2.33536092]
[1748242791619,0.08959517,109750.0,109740.0,2.30866092]
[1748242791792,0.08959517,109750.0,109740.0,2.30966092]
[1748242792237,0.08959517,109750.0,109740.0,2.31066092]
[1748242792625,0.09497117,109750.0,109740.0,2.31066092]
[1748242793224,0.10951202,109750.0,109740.0,1.5563]
[1748242793427,0.10951202,109750.0,109740.0,1.92078046]
[1748242793640,0.10951202,109750.0,109740.0,2.28526092]
[1748242795797,0.10951202,109750.0,109740.0,1.92078046]
[1748242798775,0.10951202,109750.0,109740.0,1.5563]
[1748242798951,0.10951202,109750.0,109740.0,1.92078046]
[1748242799605,0.10951202,109750.0,109740.0,1.5563]
[1748242799805,0.10951202,109750.0,109740.0,1.92078046]
[1748242800023,0.10951202,109750.0,109740.0,1.5563]
[1748242800248,0.10951202,109750.0,109740.0,1.92078046]
[1748242801038,0.09497117,109750.0,109740.0,1.92078046]
[1748242803632,0.09497117,109750.0,109740.0,1.5563]
[1748242803846,0.09497117,109750.0,109740.0,1.92078046]
[1748242804250,0.09497117,109750.0,109740.0,2.28526092]
[1748242804534,0.09497117,109750.0,109740.0,1.92078046]
[1748242804736,0.09497117,109750.0,109740.0,1.5563]
[1748242804921,0.09497117,109750.0,109740.0,1.92078046]
[1748242807435,0.09497117,109750.0,109740.0,1.5563]
[1748242807631,0.09497117,109750.0,109740.0,1.92078046]
[1748242808492,0.09497117,109750.0,109740.0,2.33846092]
[1748242810591,0.09497117,109750.0,109740.0,2.31216092]
[1748242811413,0.09497117,109750.0,109740.0,1.92078046]
[1748242811855,0.09497117,109750.0,109740.0,2.28526092]
[1748242813003,0.1034899,109750.0,109740.0,2.28526092]
[1748242813469,0.1034899,109750.0,109740.0,2.31266092]
[1748242813673,0.1024899,109750.0,109740.0,2.31266092]
[1748242814751,0.1024899,109750.0,109740.0,1.94818046]
[1748242814958,0.1024899,109750.0,109740.0,1.97438046]
[1748242816042,0.1024899,109750.0,109740.0,1.6099]
[1748242816247,0.1024899,109750.0,109740.0,1.97438046]
[1748242817952,0.1024899,109750.0,109740.0,1.97538046]
[1748242818912,0.1024899,109750.0,109740.0,1.94918046]
[1748242821332,0.1024899,109750.0,109740.0,1.6105]
[1748242821525,0.1024899,109750.0,109740.0,1.94918046]
[1748242822094,0.1024899,109750.0,109740.0,1.92178046]
[1748242822303,0.1024899,109750.0,109740.0,1.5573]
[1748242822516,0.1024899,109750.0,109740.0,1.92178046]
[1748242822730,0.1024899,109750.0,109740.0,1.94978046]
[1748242823390,0.1024899,109750.0,109740.0,1.5853]
[1748242823606,0.18767974,109750.0,109740.0,1.5573]
[1748242823820,0.22243075,109750.0,109740.0,1.5573]
[1748242828509,0.22243075,109750.0,109740.0,1.32937941]
[1748242829101,0.22243075,109750.0,109740.0,1.69385987]
[1748242829102,0.11703075,109750.0,109740.0,1.69385987]
[1748242829528,0.11703075,109750.0,109740.0,1.71975987]
[1748242830683,0.11103075,109750.0,109740.0,1.71975987]
[1748242831049,0.11103075,109750.0,109740.0,1.74765987]
[1748242833172,0.11103075,109750.0,109740.0,1.71975987]
[1748242833375,0.11103075,109750.0,109740.0,1.69385987]
[1748242833576,0.11103075,109750.0,109740.0,1.71995987]
[1748242835429,0.11103075,109750.0,109740.0,1.69385987]
[1748242837310,0.11103075,109750.0,109740.0,1.72195987]
[1748242838593,0.04436408,109750.0,109740.0,1.72195987]
[1748242838799,0.03836408,109750.0,109740.0,1.72195987]
[1748242839232,0.03836408,109750.0,109740.0,1.74855987]
[1748242843426,0.03836408,109750.0,109740.0,1.72195987]
[1748242844634,0.03836408,109750.0,109740.0,1.78195987]
[1748242846518,0.03236408,109750.0,109740.0,1.78195987]
[1748242846735,0.03236408,109750.0,109740.0,1.80765987]
[1748242854252,0.11590964,109750.0,109740.0,1.80765987]
[1748242854601,0.11590964,109750.0,109740.0,1.78295987]
[1748242855038,0.11590964,109750.0,109740.0,1.75485987]
[1748242855697,0.11590964,109750.0,109740.0,1.39037941]
[1748242855899,0.11590964,109750.0,109740.0,1.75485987]
[1748242860629,0.11590964,109750.0,109740.0,1.78105987]
[1748242860854,0.11590964,109750.0,109740.0,1.80615987]
[1748242861966,0.10990964,109750.0,109740.0,1.80615987]
[1748242862593,0.10990964,109750.0,109740.0,1.78105987]
[1748242864188,0.10990964,109750.0,109740.0,2.14553115]
[1748242867203,0.55025428,109750.0,109740.0,1.39037941]
[1748242867423,0.57678551,109750.0,109740.0,1.39037941]
[1748242867630,0.58678551,109750.0,109740.0,1.39037941]
[1748242868045,0.22230964,109750.0,109740.0,1.39037941]
[1748242868257,0.22230964,109750.0,109740.0,1.75485528]
[1748242869078,0.16230964,109750.0,109740.0,1.75485528]
[1748242869280,0.10990964,109750.0,109740.0,1.75485528]
[1748242869488,0.16110964,109750.0,109740.0,1.75485528]
[1748242869716,0.15510964,109750.0,109740.0,1.75485528]
[1748242870466,0.13000964,109750.0,109740.0,1.75485528]
[1748242870681,0.10390964,109750.0,109740.0,2.17303115]
[1748242871148,0.10390964,109750.0,109740.0,2.11933115]
[1748242871362,0.09390964,109750.0,109740.0,1.75485528]
[1748242871555,0.08954556,109750.0,109740.0,1.75485528]
[1748242871899,0.08954556,109750.0,109740.0,1.75486381]
[1748242873321,0.10408641,109750.0,109740.0,1.75486381]
[1748242876838,0.15568641,109750.0,109740.0,1.75486381]
[1748242877387,0.14968641,109750.0,109740.0,1.75486381]
[1748242877588,0.12328641,109750.0,109740.0,1.75486381]
[1748242877814,0.15048641,109750.0,109740.0,1.75486381]
[1748242878023,0.15048641,109750.0,109740.0,1.39037941]
[1748242879500,0.15048641,109750.0,109740.0,1.75486381]
[1748242880066,0.15048641,109750.0,109740.0,1.39037941]
[1748242880269,0.15048641,109750.0,109740.0,1.75486381]
[1748242880694,0.15048641,109750.0,109740.0,1.39037941]
[1748242882170,0.15048641,109750.0,109740.0,1.75486381]
[1748242884221,0.15048641,109750.0,109740.0,1.75386381]
[1748242884405,0.15048641,109750.0,109740.0,1.75286381]
[1748242884614,0.15048641,109750.0,109740.0,1.75386381]
[1748242885183,0.14448641,109750.0,109740.0,1.75386381]
[1748242886416,0.14448641,109750.0,109740.0,1.38937941]
[1748242886821,0.14448641,109750.0,109740.0,1.75386381]
[1748242887025,0.24018641,109750.0,109740.0,1.75386381]
[1748242887255,0.14448641,109750.0,109740.0,1.75386381]
[1748242887972,0.14448641,109750.0,109740.0,1.38937941]
[1748242888176,0.14448641,109750.0,109740.0,1.75386381]
[1748242888895,0.14448641,109750.0,109740.0,1.38937941]
[1748242889042,0.14448641,109750.0,109740.0,1.75386381]
[1748242892922,0.13848641,109750.0,109740.0,1.75386381]
[1748242893132,0.13848641,109750.0,109740.0,1.38937941]
[1748242893578,0.13848641,109750.0,109740.0,1.40421608]
[1748242893914,0.13848641,109750.0,109740.0,1.76878704]
[1748242894119,0.13848641,109750.0,109740.0,1.76778704]
[1748242894307,0.14700072,109750.0,109740.0,1.76678704]
[1748242895806,0.14700072,109750.0,109740.0,2.131358]